[Event "The Kvibergspelen 2023"]
[Site "Kviberg Park Hotel & Conference, Krutvagen 2, Gothenburg, Sweden"]
[Date "2023.09.17"]
[Round "8.8"]
[White "Strom-Engdahl, Alexander"]
[Black "Jacobsen, Mikkel Manosri"]
[Result "1/2-1/2"]
[TimeControl "15 minutes + 5 seconds per move from move one (Round 1 - 4) / 90 minutes + 30 seconds per move from move one (Round 5 - 8)"]
[BlackTitle "FM"]
[WhiteFideId "1741586"]
[BlackFideId "1444514"]
[WhiteElo "2164"]
[BlackElo "2313"]

1. e4 {[%clk 01:30:55]} {[%emt 00:00:04]} c5 {[%clk 01:30:34]} {[%emt
00:00:26]} 2. Nf3 {[%clk 01:30:28]} {[%emt 00:00:57]} Nf6 {[%clk 01:30:58]}
{[%emt 00:00:06]} 3. e5 {[%clk 01:30:02]} {[%emt 00:00:57]} Nd5 {[%clk
01:31:22]} {[%emt 00:00:05]} 4. Nc3 {[%clk 01:30:24]} {[%emt 00:00:08]} e6
{[%clk 01:31:49]} {[%emt 00:00:04]} 5. Bc4 {[%clk 01:27:48]} {[%emt 00:03:06]}
Nb6 {[%clk 01:32:04]} {[%emt 00:00:14]} 6. d3 {[%clk 01:25:52]} {[%emt
00:02:26]} d5 {[%clk 01:29:56]} {[%emt 00:02:38]} 7. exd6 {[%clk 01:23:05]}
{[%emt 00:03:18]} Bxd6 {[%clk 01:30:15]} {[%emt 00:00:11]} 8. O-O {[%clk
01:20:59]} {[%emt 00:02:34]} O-O {[%clk 01:29:06]} {[%emt 00:01:40]} 9. Re1
{[%clk 01:18:28]} {[%emt 00:03:01]} Nc6 {[%clk 01:28:01]} {[%emt 00:01:36]} 10.
Ne4 {[%clk 01:16:14]} {[%emt 00:02:43]} Be7 {[%clk 01:25:06]} {[%emt 00:03:24]}
11. c3 {[%clk 01:11:03]} {[%emt 00:05:42]} Nxc4 {[%clk 01:21:44]} {[%emt
00:03:52]} 12. dxc4 {[%clk 01:11:26]} {[%emt 00:00:07]} Qxd1 {[%clk 01:19:23]}
{[%emt 00:02:52]} 13. Rxd1 {[%clk 01:11:08]} {[%emt 00:00:47]} e5 {[%clk
01:18:38]} {[%emt 00:01:16]} 14. Be3 {[%clk 01:06:20]} {[%emt 00:05:17]} b6
{[%clk 01:17:03]} {[%emt 00:02:06]} 15. Nd6 {[%clk 01:03:21]} {[%emt 00:03:28]}
Bg4 {[%clk 01:06:51]} {[%emt 00:10:41]} 16. h3 {[%clk 00:58:20]} {[%emt
00:05:32]} Be6 {[%clk 01:00:50]} {[%emt 00:06:31]} 17. b3 {[%clk 00:51:50]}
{[%emt 00:07:00]} h6 {[%clk 01:01:08]} {[%emt 00:00:13]} 18. g4 {[%clk
00:44:12]} {[%emt 00:08:07]} Rfd8 {[%clk 00:52:49]} {[%emt 00:08:48]} 19. Nb5
{[%clk 00:42:44]} {[%emt 00:01:58]} Rdc8 {[%clk 00:52:49]} {[%emt 00:00:32]} 20.
Nd6 {[%clk 00:39:19]} {[%emt 00:03:53]} Rc7 {[%clk 00:52:02]} {[%emt 00:01:18]}
21. Kf1 {[%clk 00:37:16]} {[%emt 00:02:34]} Kh7 {[%clk 00:51:27]} {[%emt
00:01:04]} 22. Ke2 {[%clk 00:36:07]} {[%emt 00:01:39]} g6 {[%clk 00:51:00]}
{[%emt 00:00:57]} 23. Nb5 {[%clk 00:31:42]} {[%emt 00:04:55]} Rb7 {[%clk
00:50:32]} {[%emt 00:00:58]} 24. Nd6 {[%clk 00:31:34]} {[%emt 00:00:38]} Rd7
{[%clk 00:47:54]} {[%emt 00:03:08]} 25. Nb5 {[%clk 00:31:40]} {[%emt 00:00:24]}
Rad8 {[%clk 00:47:06]} {[%emt 00:01:18]} 26. Rxd7 {[%clk 00:31:32]} {[%emt
00:00:39]} Rxd7 {[%clk 00:47:28]} {[%emt 00:00:08]} 27. Rd1 {[%clk 00:31:56]}
{[%emt 00:00:05]} Rxd1 {[%clk 00:46:31]} {[%emt 00:01:27]} 28. Kxd1 {[%clk
00:32:07]} {[%emt 00:00:20]} Bd8 {[%clk 00:40:01]} {[%emt 00:07:00]} 29. Nh2
{[%clk 00:28:08]} {[%emt 00:04:28]} a6 {[%clk 00:36:07]} {[%emt 00:04:24]} 30.
Na3 {[%clk 00:26:15]} {[%emt 00:02:23]} Bc7 {[%clk 00:35:33]} {[%emt 00:01:04]}
31. Ke2 {[%clk 00:20:32]} {[%emt 00:06:14]} e4 {[%clk 00:32:47]} {[%emt
00:03:15]} 32. Nf1 {[%clk 00:20:51]} {[%emt 00:00:11]} f5 {[%clk 00:32:57]}
{[%emt 00:00:21]} 33. gxf5 {[%clk 00:19:17]} {[%emt 00:02:04]} gxf5 {[%clk
00:33:07]} {[%emt 00:00:19]} 34. f4 {[%clk 00:18:55]} {[%emt 00:00:52]} exf3+
{[%clk 00:27:45]} {[%emt 00:05:52]} 35. Kxf3 {[%clk 00:18:46]} {[%emt
00:00:39]} Ne5+ {[%clk 00:28:09]} {[%emt 00:00:06]} 36. Ke2 {[%clk 00:15:42]}
{[%emt 00:03:34]} Ng6 {[%clk 00:27:36]} {[%emt 00:01:03]} 37. Nd2 {[%clk
00:15:00]} {[%emt 00:01:12]} f4 {[%clk 00:26:55]} {[%emt 00:01:11]} 38. Bf2
{[%clk 00:15:08]} {[%emt 00:00:21]} Bxh3 {[%clk 00:26:49]} {[%emt 00:00:37]} 39.
b4 {[%clk 00:15:12]} {[%emt 00:00:26]} Bg4+ {[%clk 00:26:20]} {[%emt 00:00:59]}
40. Kf1 {[%clk 00:14:39]} {[%emt 00:01:03]} h5 {[%clk 00:18:05]} {[%emt
00:08:45]} 41. bxc5 {[%clk 00:12:55]} {[%emt 00:02:14]} bxc5 {[%clk 00:18:10]}
{[%emt 00:00:26]} 42. Ne4 {[%clk 00:13:09]} {[%emt 00:00:16]} Kh6 {[%clk
00:18:32]} {[%emt 00:00:07]} 43. Nxc5 {[%clk 00:11:21]} {[%emt 00:02:19]} h4
{[%clk 00:12:52]} {[%emt 00:06:10]} 44. Nxa6 {[%clk 00:10:00]} {[%emt
00:01:51]} Be5 {[%clk 00:13:21]} {[%emt 00:00:01]} 45. Nc5 {[%clk 00:09:06]}
{[%emt 00:01:23]} h3 {[%clk 00:13:41]} {[%emt 00:00:10]} 46. Kg1 {[%clk
00:07:50]} {[%emt 00:01:46]} f3 {[%clk 00:04:20]} {[%emt 00:09:52]} 47. Nd3
{[%clk 00:06:25]} {[%emt 00:01:55]} Bb8 {[%emt 00:01:37]} 48. Nc2 {[%clk
00:06:03]} {[%emt 00:00:50]} Bf5 {[%clk 00:01:03]} {[%emt 00:02:41]} 49. Nce1
{[%clk 00:06:15]} {[%emt 00:00:18]} Kh5 {[%emt 00:02:31]} 50. a4 {[%clk
00:04:19]} Ne5 {[%clk 00:01:11]} {[%emt 00:00:47]} 51. Nxe5 {[%clk 00:04:26]}
{[%emt 00:00:24]} Bxe5 {[%clk 00:01:31]} {[%emt 00:00:10]} 52. Nxf3 {[%clk
00:04:51]} {[%emt 00:00:04]} Bxc3 {[%clk 00:01:46]} {[%emt 00:00:15]} 53. c5
{[%clk 00:02:32]} {[%emt 00:02:49]} Bd7 {[%clk 00:00:46]} {[%emt 00:01:30]} 54.
Bd4 {[%clk 00:02:08]} {[%emt 00:00:54]} Ba5 {[%clk 00:00:50]} {[%emt 00:00:27]}
55. Ne5 {[%clk 00:01:51]} {[%emt 00:00:47]} Bxa4 {[%clk 00:00:52]} {[%emt
00:00:28]} 56. Kh2 {[%clk 00:02:09]} {[%emt 00:00:11]} Kh4 {[%clk 00:00:43]}
{[%emt 00:00:39]} 57. Bf2+ {[%clk 00:02:28]} {[%emt 00:00:11]} Kg5 {[%clk
00:01:05]} {[%emt 00:00:09]} 58. Kxh3 {[%clk 00:02:35]} {[%emt 00:00:23]} Kf5
{[%clk 00:01:18]} {[%emt 00:00:16]} 59. Nc4 {[%clk 00:02:34]} {[%emt 00:00:31]}
Bc7 {[%clk 00:01:46]} {[%emt 00:00:03]} 60. Bg3 {[%clk 00:02:42]} {[%emt
00:00:22]} Bxg3 {[%clk 00:01:26]} {[%emt 00:00:50]} 61. Kxg3 {[%clk 00:03:06]}
{[%emt 00:00:05]} Ke4 {[%clk 00:01:49]} {[%emt 00:00:07]} 62. Na5 {[%clk
00:03:12]} {[%emt 00:00:25]} Kd5 {[%clk 00:01:20]} {[%emt 00:00:59]} 63. c6
{[%clk 00:03:36]} {[%emt 00:00:06]} Bxc6 {[%clk 00:01:46]} {[%emt 00:00:04]} 64.
Nxc6 {[%clk 00:04:02]} {[%emt 00:00:04]} Kxc6 {[%clk 00:02:11]} {[%emt
00:00:04]} 1/2-1/2

[Event "The Kvibergspelen 2023"]
[Site "Kviberg Park Hotel & Conference, Krutvagen 2, Gothenburg, Sweden"]
[Date "2023.09.17"]
[Round "8.9"]
[White "Poley, Vladimir"]
[Black "Pedersen, Daniel Vesterbaek"]
[Result "0-1"]
[TimeControl "15 minutes + 5 seconds per move from move one (Round 1 - 4) / 90 minutes + 30 seconds per move from move one (Round 5 - 8)"]
[WhiteTitle "IM"]
[BlackTitle "FM"]
[WhiteFideId "13500090"]
[BlackFideId "1402161"]
[WhiteElo "2284"]
[BlackElo "2163"]

1. Nf3 {[%clk 01:29:15]} {[%emt 00:01:46]} c5 {[%clk 01:29:43]} {[%emt
00:01:17]} 2. g3 {[%clk 01:29:32]} {[%emt 00:00:13]} Nf6 {[%clk 01:28:52]}
{[%emt 00:01:20]} 3. Bg2 {[%clk 01:29:57]} {[%emt 00:00:06]} d5 {[%clk
01:27:30]} {[%emt 00:01:52]} 4. O-O {[%clk 01:30:20]} {[%emt 00:00:07]} e6
{[%clk 01:27:45]} {[%emt 00:00:15]} 5. b3 {[%clk 01:29:50]} {[%emt 00:00:59]}
Be7 {[%clk 01:27:48]} {[%emt 00:00:27]} 6. Bb2 {[%clk 01:30:14]} {[%emt
00:00:07]} Nc6 {[%clk 01:28:00]} {[%emt 00:00:18]} 7. e3 {[%clk 01:30:38]}
{[%emt 00:00:06]} b5 {[%clk 01:26:25]} {[%emt 00:02:05]} 8. c4 {[%clk
01:30:28]} {[%emt 00:00:40]} bxc4 {[%clk 01:14:14]} {[%emt 00:12:41]} 9. bxc4
{[%clk 01:29:47]} {[%emt 00:01:11]} O-O {[%clk 01:02:05]} {[%emt 00:12:38]} 10.
d3 {[%clk 01:23:32]} {[%emt 00:06:46]} Rb8 {[%clk 00:56:12]} {[%emt 00:06:23]}
11. Ne5 {[%clk 01:17:08]} {[%emt 00:06:53]} Rxb2 {[%clk 00:53:13]} {[%emt
00:03:29]} 12. Nxc6 {[%clk 01:17:25]} {[%emt 00:00:13]} Qd7 {[%clk 00:50:03]}
{[%emt 00:03:40]} 13. Nxe7+ {[%clk 01:13:44]} {[%emt 00:04:11]} Qxe7 {[%clk
00:50:31]} {[%emt 00:00:02]} 14. Nd2 {[%clk 01:13:24]} {[%emt 00:00:50]} Rb4
{[%clk 00:44:58]} {[%emt 00:06:03]} 15. Qc2 {[%clk 01:11:18]} {[%emt 00:02:36]}
Ba6 {[%clk 00:39:07]} {[%emt 00:06:21]} 16. cxd5 {[%clk 01:06:37]} {[%emt
00:05:11]} exd5 {[%clk 00:39:14]} {[%emt 00:00:23]} 17. Rfc1 {[%clk 01:06:55]}
{[%emt 00:00:11]} Rc8 {[%clk 00:34:34]} {[%emt 00:05:12]} 18. Bh3 {[%clk
01:01:15]} {[%emt 00:06:10]} Rc7 {[%clk 00:31:10]} {[%emt 00:03:54]} 19. Qc3
{[%clk 00:58:12]} {[%emt 00:03:32]} d4 {[%clk 00:24:33]} {[%emt 00:07:07]} 20.
exd4 {[%clk 00:58:12]} {[%emt 00:00:30]} Rxd4 {[%clk 00:25:02]} {[%emt
00:00:02]} 21. Bf1 {[%clk 00:46:51]} {[%emt 00:11:50]} h6 {[%clk 00:16:46]}
{[%emt 00:08:45]} 22. Nb3 {[%clk 00:43:10]} {[%emt 00:04:12]} Rd5 {[%clk
00:17:05]} {[%emt 00:00:11]} 23. Rc2 {[%clk 00:41:34]} {[%emt 00:02:06]} Qd6
{[%clk 00:15:50]} {[%emt 00:01:46]} 24. d4 {[%clk 00:40:03]} {[%emt 00:02:01]}
c4 {[%clk 00:16:18]} {[%emt 00:00:01]} 25. Nc5 {[%clk 00:39:15]} {[%emt
00:01:18]} Bb5 {[%clk 00:11:56]} {[%emt 00:04:52]} 26. a4 {[%clk 00:37:45]}
{[%emt 00:02:00]} Rxd4 {[%clk 00:12:01]} {[%emt 00:00:25]} 27. axb5 {[%clk
00:34:09]} {[%emt 00:04:07]} Qxc5 {[%clk 00:12:20]} {[%emt 00:00:10]} 28. b6
{[%clk 00:27:13]} {[%emt 00:07:26]} axb6 {[%clk 00:11:43]} {[%emt 00:01:08]} 29.
Ra8+ {[%clk 00:27:38]} {[%emt 00:00:05]} Kh7 {[%clk 00:12:04]} {[%emt
00:00:09]} 30. Re2 {[%clk 00:27:34]} {[%emt 00:00:33]} b5 {[%clk 00:11:38]}
{[%emt 00:00:57]} 31. Rb8 {[%clk 00:26:38]} {[%emt 00:01:25]} Rd6 {[%clk
00:09:17]} {[%emt 00:02:51]} 32. Re5 {[%clk 00:26:25]} {[%emt 00:00:43]} Rd5
{[%clk 00:09:02]} {[%emt 00:00:47]} 33. Re3 {[%clk 00:22:23]} {[%emt 00:04:30]}
Rd6 {[%clk 00:04:21]} {[%emt 00:05:12]} 34. Re5 {[%clk 00:20:27]} {[%emt
00:02:27]} Rd5 {[%clk 00:04:49]} 35. Re3 {[%clk 00:20:46]} {[%emt 00:00:11]}
Qd6 {[%clk 00:04:30]} {[%emt 00:00:50]} 36. Qc2+ {[%clk 00:20:38]} {[%emt
00:00:38]} g6 {[%clk 00:04:53]} {[%emt 00:00:06]} 37. Qc3 {[%clk 00:20:37]}
{[%emt 00:00:30]} Re7 {[%clk 00:03:58]} {[%emt 00:01:26]} 38. Rxe7 {[%clk
00:17:39]} {[%emt 00:03:28]} Qxe7 {[%clk 00:04:26]} {[%emt 00:00:02]} 39. Qb2
{[%clk 00:16:08]} {[%emt 00:02:01]} Qe5 {[%clk 00:04:26]} {[%emt 00:00:29]} 40.
Qxe5 {[%clk 00:15:45]} {[%emt 00:00:54]} Rxe5 {[%clk 00:04:55]} {[%emt
00:00:02]} 41. Rc8 {[%clk 00:15:49]} {[%emt 00:00:25]} Ne4 {[%clk 00:03:59]}
{[%emt 00:01:25]} 42. Rc7 {[%clk 00:15:01]} {[%emt 00:01:18]} Kg7 {[%emt
00:01:01]} 43. f4 {[%clk 00:15:02]} Rc5 {[%clk 00:03:56]} {[%emt 00:00:32]} 44.
Re7 {[%clk 00:15:21]} {[%emt 00:00:11]} Nd2 {[%clk 00:03:36]} {[%emt 00:00:50]}
0-1

[Event "The Kvibergspelen 2023"]
[Site "Kviberg Park Hotel & Conference, Krutvagen 2, Gothenburg, Sweden"]
[Date "2023.09.17"]
[Round "8.10"]
[White "Fransson, Angelina"]
[Black "Cederstam, Carl"]
[Result "0-1"]
[TimeControl "15 minutes + 5 seconds per move from move one (Round 1 - 4) / 90 minutes + 30 seconds per move from move one (Round 5 - 8)"]
[BlackTitle "FM"]
[WhiteFideId "1712632"]
[BlackFideId "1713329"]
[WhiteElo "1982"]
[BlackElo "2232"]

1. e4 {[%clk 01:30:58]} c5 {[%clk 01:28:34]} {[%emt 00:02:27]} 2. Nf3 {[%clk
01:31:19]} {[%emt 00:00:09]} d6 {[%clk 01:28:48]} {[%emt 00:00:16]} 3. Bb5+
{[%clk 01:31:31]} {[%emt 00:00:18]} Nc6 {[%clk 01:26:00]} {[%emt 00:03:18]} 4.
c3 {[%clk 01:31:16]} {[%emt 00:00:45]} Nf6 {[%clk 01:24:47]} {[%emt 00:01:42]}
5. O-O {[%clk 01:28:26]} {[%emt 00:03:21]} g5 {[%clk 01:16:07]} {[%emt
00:09:09]} 6. d4 {[%clk 01:23:21]} {[%emt 00:05:34]} g4 {[%clk 01:14:40]}
{[%emt 00:01:58]} 7. Nfd2 {[%clk 01:18:03]} {[%emt 00:05:48]} Bd7 {[%clk
01:03:34]} {[%emt 00:11:35]} 8. e5 {[%clk 01:12:34]} {[%emt 00:06:00]} dxe5
{[%clk 00:56:40]} {[%emt 00:07:24]} 9. Bxc6 {[%clk 01:11:05]} {[%emt 00:01:58]}
Bxc6 {[%clk 00:57:00]} {[%emt 00:00:11]} 10. dxe5 {[%clk 01:09:45]} {[%emt
00:01:50]} Qd5 {[%clk 00:57:01]} {[%emt 00:00:30]} 11. Nf3 {[%clk 01:07:04]}
{[%emt 00:03:11]} gxf3 {[%clk 00:49:51]} {[%emt 00:07:40]} 12. exf6 {[%clk
01:05:23]} {[%emt 00:02:11]} Qh5 {[%clk 00:45:49]} {[%emt 00:04:32]} 13. Bf4
{[%clk 01:02:01]} {[%emt 00:03:51]} Bh6 {[%clk 00:37:19]} {[%emt 00:09:00]} 14.
Qe1 {[%clk 00:51:13]} {[%emt 00:11:18]} O-O-O {[%clk 00:32:51]} {[%emt
00:04:57]} 15. Qe5 {[%clk 00:50:13]} {[%emt 00:01:31]} Qxe5 {[%clk 00:31:44]}
{[%emt 00:01:38]} 16. Bxe5 {[%clk 00:50:38]} {[%emt 00:00:04]} fxg2 {[%clk
00:28:44]} {[%emt 00:03:29]} 17. Re1 {[%clk 00:50:48]} {[%emt 00:00:20]} Rhe8
{[%clk 00:20:47]} {[%emt 00:08:27]} 18. Na3 {[%clk 00:49:00]} {[%emt 00:02:20]}
Bd2 {[%clk 00:20:40]} {[%emt 00:00:36]} 19. Red1 {[%clk 00:48:49]} {[%emt
00:00:41]} exf6 {[%clk 00:12:59]} {[%emt 00:08:12]} 20. Bxf6 {[%clk 00:48:30]}
{[%emt 00:00:48]} Rd5 {[%clk 00:11:50]} {[%emt 00:01:38]} 21. Nc4 {[%clk
00:41:38]} {[%emt 00:07:24]} Bf4 {[%clk 00:12:11]} {[%emt 00:00:08]} 22. Bh4
{[%clk 00:40:00]} {[%emt 00:02:09]} Re4 {[%clk 00:11:03]} {[%emt 00:01:37]} 23.
Na5 {[%clk 00:39:07]} {[%emt 00:01:23]} Rxd1+ {[%clk 00:09:28]} {[%emt
00:02:05]} 24. Rxd1 {[%clk 00:39:22]} {[%emt 00:00:15]} Bxh2+ {[%clk 00:09:34]}
{[%emt 00:00:24]} 25. Kxg2 {[%clk 00:39:11]} {[%emt 00:00:41]} Rxh4+ {[%clk
00:09:16]} {[%emt 00:00:47]} 26. Nxc6 {[%clk 00:39:33]} {[%emt 00:00:09]} bxc6
{[%clk 00:09:40]} {[%emt 00:00:06]} 27. Rh1 {[%clk 00:39:46]} {[%emt 00:00:17]}
Kd7 {[%clk 00:09:44]} {[%emt 00:00:26]} 28. Rxh2 {[%clk 00:39:41]} {[%emt
00:00:35]} Rxh2+ {[%clk 00:10:09]} {[%emt 00:00:05]} 29. Kxh2 {[%clk 00:40:08]}
{[%emt 00:00:03]} Ke6 {[%clk 00:10:34]} {[%emt 00:00:04]} 30. Kg3 {[%clk
00:40:14]} {[%emt 00:00:26]} Kf5 {[%clk 00:10:58]} {[%emt 00:00:06]} 31. Kf3
{[%clk 00:39:28]} {[%emt 00:01:16]} f6 {[%clk 00:10:14]} {[%emt 00:01:12]} 32.
b3 {[%clk 00:37:26]} {[%emt 00:02:33]} Ke5 {[%clk 00:09:32]} {[%emt 00:01:11]}
33. Ke3 {[%clk 00:34:55]} {[%emt 00:03:01]} a6 {[%clk 00:08:11]} {[%emt
00:01:51]} 34. a4 {[%clk 00:22:23]} {[%emt 00:13:02]} h6 {[%clk 00:06:38]}
{[%emt 00:02:02]} 35. Kd3 {[%clk 00:15:04]} {[%emt 00:07:50]} Kf4 {[%clk
00:06:37]} {[%emt 00:00:30]} 36. Kc4 {[%clk 00:15:26]} {[%emt 00:00:09]} h5
{[%clk 00:07:03]} {[%emt 00:00:05]} 37. Kxc5 {[%clk 00:15:51]} {[%emt
00:00:04]} h4 {[%clk 00:07:29]} {[%emt 00:00:03]} 38. Kxc6 {[%clk 00:15:51]}
{[%emt 00:00:31]} h3 {[%clk 00:07:54]} {[%emt 00:00:04]} 39. Kb6 {[%clk
00:16:12]} {[%emt 00:00:10]} h2 {[%clk 00:08:20]} {[%emt 00:00:04]} 40. c4
{[%clk 00:16:02]} {[%emt 00:00:41]} h1=Q {[%clk 00:08:42]} {[%emt 00:00:07]} 41.
b4 {[%clk 00:15:58]} {[%emt 00:00:34]} Qa8 {[%clk 00:08:54]} {[%emt 00:00:19]}
42. c5 {[%clk 00:16:15]} {[%emt 00:00:13]} Ke5 {[%clk 00:09:17]} {[%emt
00:00:06]} 43. f3 {[%clk 00:12:59]} {[%emt 00:03:47]} Kd5 {[%clk 00:09:29]}
{[%emt 00:00:17]} 44. Ka5 {[%clk 00:12:50]} {[%emt 00:00:38]} Kc6 {[%clk
00:09:40]} {[%emt 00:00:20]} 45. f4 {[%clk 00:13:09]} {[%emt 00:00:12]} Qd8+
{[%clk 00:10:07]} {[%emt 00:00:03]} 0-1